[Event "Titled Tuesday Blitz March 28 Late 2023"]
[White "Skvortsov, Andrei"]
[Black "Krishnan, Varun"]
[WhiteFideId "24108600"]
[BlackFideId "5054508"]
[WhiteElo "2259"]
[BlackElo "2528"]
[Result "0-1"]
[Round "07"]
[TimeControl "180+2"]
[Date "2023.03.28"]
[WhiteClock "0:00:13"]
[BlackClock "0:00:38"]

1. e4 {[%clk 0:03:00]}  e5 {[%clk 0:02:59]} 2. d4 {[%clk 0:03:00]}  exd4 {[%clk 0:02:57]} 3. Qxd4 {[%clk 0:03:01]}  Nc6 {[%clk 0:02:57]} 4. Qd3 {[%clk 0:03:02]}  d6 {[%clk 0:02:57]} 5. Nc3 {[%clk 0:03:02]}  Nf6 {[%clk 0:02:58]} 6. Bg5 {[%clk 0:03:01]}  Be7 {[%clk 0:02:58]} 7. O-O-O {[%clk 0:03:00]}  O-O {[%clk 0:02:50]} 8. f3 {[%clk 0:02:54]}  Be6 {[%clk 0:02:46]} 9. a3 {[%clk 0:02:49]}  a6 {[%clk 0:02:41]} 10. g4 {[%clk 0:02:48]}  b5 {[%clk 0:02:40]} 11. Bxf6 {[%clk 0:02:48]}  Bxf6 {[%clk 0:02:40]} 12. Nd5 {[%clk 0:02:49]}  Ne5 {[%clk 0:02:34]} 13. Nxf6+ {[%clk 0:02:48]}  Qxf6 {[%clk 0:02:33]} 14. Qc3 {[%clk 0:02:46]}  Bc4 {[%clk 0:02:24]} 15. Bxc4 {[%clk 0:02:24]}  bxc4 {[%clk 0:02:23]} 16. h4 {[%clk 0:02:18]}  Rab8 {[%clk 0:02:09]} 17. g5 {[%clk 0:01:59]}  Qf4+ {[%clk 0:02:06]} 18. Kb1 {[%clk 0:01:47]}  Rb5 {[%clk 0:01:56]} 19. Ka1 {[%clk 0:01:33]}  Rfb8 {[%clk 0:01:47]} 20. Rb1 {[%clk 0:01:02]}  d5 {[%clk 0:01:30]} 21. exd5 {[%clk 0:00:53]}  Rxd5 {[%clk 0:01:27]} 22. Ne2 {[%clk 0:00:28]}  Qxf3 {[%clk 0:01:22]} 23. Qxf3 {[%clk 0:00:28]}  Nxf3 {[%clk 0:01:23]} 24. Nc3 {[%clk 0:00:25]}  Rd2 {[%clk 0:01:21]} 25. Rbc1 {[%clk 0:00:21]}  Nd4 {[%clk 0:01:18]} 26. Kb1 {[%clk 0:00:21]}  Nb5 {[%clk 0:01:18]} 27. Nxb5 {[%clk 0:00:20]}  axb5 {[%clk 0:01:18]} 28. Rcd1 {[%clk 0:00:20]}  Rd6 {[%clk 0:01:11]} 29. Rde1 {[%clk 0:00:18]}  Re6 {[%clk 0:01:05]} 30. Rd1 {[%clk 0:00:18]}  Rd6 {[%clk 0:01:05]} 31. Rde1 {[%clk 0:00:18]}  Kf8 {[%clk 0:01:01]} 32. Re5 {[%clk 0:00:17]}  Re6 {[%clk 0:00:56]} 33. Rf5 {[%clk 0:00:18]}  c6 {[%clk 0:00:49]} 34. Rhf1 {[%clk 0:00:18]}  Rb7 {[%clk 0:00:48]} 35. Rc5 {[%clk 0:00:14]}  g6 {[%clk 0:00:46]} 36. a4 {[%clk 0:00:14]}  Ke7 {[%clk 0:00:43]} 37. Ka2 {[%clk 0:00:13]}  Kd6 {[%clk 0:00:38]} 0-1


[Site "https://www.chess.com"]

[Event "Titled Tuesday Blitz March 28 Late 2023"]
[White "Pires, Marcos Vinicius Torsani"]
[Black "Sieciechowicz, Marcin"]
[WhiteFideId "2118939"]
[BlackFideId "1130170"]
[WhiteElo "2273"]
[BlackElo "2302"]
[Result "0-1"]
[Round "07"]
[TimeControl "180+2"]
[Date "2023.03.28"]
[WhiteClock "0:00:12"]
[BlackClock "0:00:36"]

1. d4 {[%clk 0:03:00]}  Nf6 {[%clk 0:02:55]} 2. Bf4 {[%clk 0:02:59]}  d5 {[%clk 0:02:40]} 3. e3 {[%clk 0:02:59]}  e6 {[%clk 0:02:39]} 4. Nf3 {[%clk 0:02:59]}  Bd6 {[%clk 0:02:39]} 5. Bg3 {[%clk 0:02:59]}  c5 {[%clk 0:02:40]} 6. c3 {[%clk 0:02:58]}  Qc7 {[%clk 0:02:38]} 7. Nbd2 {[%clk 0:02:48]}  Nbd7 {[%clk 0:02:37]} 8. Bd3 {[%clk 0:02:42]}  O-O {[%clk 0:02:37]} 9. Bxd6 {[%clk 0:02:41]}  Qxd6 {[%clk 0:02:38]} 10. O-O {[%clk 0:02:41]}  e5 {[%clk 0:02:35]} 11. dxe5 {[%clk 0:02:39]}  Nxe5 {[%clk 0:02:36]} 12. Nxe5 {[%clk 0:02:38]}  Qxe5 {[%clk 0:02:37]} 13. Nf3 {[%clk 0:02:39]}  Qe7 {[%clk 0:02:29]} 14. Qa4 {[%clk 0:02:38]}  b6 {[%clk 0:02:23]} 15. Rfe1 {[%clk 0:02:33]}  Bb7 {[%clk 0:02:22]} 16. Ba6 {[%clk 0:02:30]}  Rfd8 {[%clk 0:02:19]} 17. Bxb7 {[%clk 0:02:30]}  Qxb7 {[%clk 0:02:20]} 18. Rad1 {[%clk 0:02:29]}  b5 {[%clk 0:02:13]} 19. Qa5 {[%clk 0:02:16]}  Rab8 {[%clk 0:02:00]} 20. a3 {[%clk 0:02:15]}  h6 {[%clk 0:01:57]} 21. b4 {[%clk 0:02:01]}  Qb6 {[%clk 0:01:57]} 22. Qxb6 {[%clk 0:01:52]}  Rxb6 {[%clk 0:01:55]} 23. Ne5 {[%clk 0:01:29]}  c4 {[%clk 0:01:46]} 24. Nf3 {[%clk 0:01:16]}  Ne4 {[%clk 0:01:36]} 25. Rc1 {[%clk 0:01:15]}  Ra6 {[%clk 0:01:35]} 26. Nd4 {[%clk 0:01:11]}  Rb8 {[%clk 0:01:31]} 27. f3 {[%clk 0:01:08]}  Nd2 {[%clk 0:01:27]} 28. Red1 {[%clk 0:00:57]}  Nb3 {[%clk 0:01:27]} 29. Nxb3 {[%clk 0:00:57]}  cxb3 {[%clk 0:01:28]} 30. Rxd5 {[%clk 0:00:47]}  Rxa3 {[%clk 0:01:26]} 31. Rb1 {[%clk 0:00:47]}  Rc8 {[%clk 0:01:14]} 32. Rc5 {[%clk 0:00:41]}  Rxc5 {[%clk 0:01:10]} 33. bxc5 {[%clk 0:00:42]}  Kf8 {[%clk 0:01:10]} 34. Kf2 {[%clk 0:00:36]}  Ke7 {[%clk 0:01:00]} 35. Ke2 {[%clk 0:00:34]}  a5 {[%clk 0:00:57]} 36. Kd3 {[%clk 0:00:34]}  a4 {[%clk 0:00:56]} 37. Kd4 {[%clk 0:00:23]}  Kd7 {[%clk 0:00:52]} 38. Kd5 {[%clk 0:00:22]}  Ra2 {[%clk 0:00:47]} 39. c6+ {[%clk 0:00:21]}  Kc7 {[%clk 0:00:47]} 40. Kc5 {[%clk 0:00:22]}  b2 {[%clk 0:00:47]} 41. Rd1 {[%clk 0:00:22]}  Ra3 {[%clk 0:00:36]} 42. Rd7+ {[%clk 0:00:12]}  Kc8 {[%clk 0:00:36]} 0-1


[Site "https://www.chess.com"]

[Event "Titled Tuesday Blitz March 28 Late 2023"]
[White "Fan_Of_Chucky"]
[Black "Rytenko, Vsevolod"]
[BlackFideId "14133040"]
[WhiteElo "2390"]
[BlackElo "2262"]
[Result "1-0"]
[Round "07"]
[TimeControl "180+2"]
[Date "2023.03.28"]
[WhiteClock "0:00:05"]
[BlackClock "0:00:30"]

1. d4 {[%clk 0:03:00]}  d5 {[%clk 0:02:58]} 2. c4 {[%clk 0:02:40]}  c6 {[%clk 0:02:58]} 3. cxd5 {[%clk 0:02:39]}  cxd5 {[%clk 0:02:58]} 4. Nc3 {[%clk 0:02:40]}  Nf6 {[%clk 0:02:58]} 5. Bg5 {[%clk 0:02:40]}  Ne4 {[%clk 0:02:58]} 6. Nxe4 {[%clk 0:02:41]}  dxe4 {[%clk 0:02:58]} 7. Bd2 {[%clk 0:02:41]}  Nc6 {[%clk 0:02:56]} 8. e3 {[%clk 0:02:38]}  e5 {[%clk 0:02:53]} 9. dxe5 {[%clk 0:02:33]}  Nxe5 {[%clk 0:02:52]} 10. Qa4+ {[%clk 0:02:30]}  Bd7 {[%clk 0:02:46]} 11. Qxe4 {[%clk 0:02:30]}  Qe7 {[%clk 0:02:29]} 12. Bc3 {[%clk 0:02:23]}  f6 {[%clk 0:02:25]} 13. a4 {[%clk 0:01:29]}  Bc6 {[%clk 0:02:16]} 14. Bb5 {[%clk 0:01:27]}  Rc8 {[%clk 0:02:02]} 15. Bxc6+ {[%clk 0:01:21]}  Nxc6 {[%clk 0:02:00]} 16. Qxe7+ {[%clk 0:01:20]}  Bxe7 {[%clk 0:02:00]} 17. Nf3 {[%clk 0:01:19]}  O-O {[%clk 0:01:59]} 18. Ke2 {[%clk 0:01:14]}  Rfd8 {[%clk 0:01:58]} 19. Rhd1 {[%clk 0:01:14]}  Kf7 {[%clk 0:01:59]} 20. Rxd8 {[%clk 0:01:14]}  Rxd8 {[%clk 0:01:59]} 21. Rd1 {[%clk 0:01:15]}  Rxd1 {[%clk 0:01:44]} 22. Kxd1 {[%clk 0:01:15]}  g5 {[%clk 0:01:37]} 23. Nd4 {[%clk 0:01:15]}  Ne5 {[%clk 0:01:34]} 24. Ke2 {[%clk 0:00:34]}  a6 {[%clk 0:01:33]} 25. Nf5 {[%clk 0:00:30]}  Bc5 {[%clk 0:01:20]} 26. Bxe5 {[%clk 0:00:29]}  fxe5 {[%clk 0:01:21]} 27. Ng3 {[%clk 0:00:27]}  Ke6 {[%clk 0:01:18]} 28. Ne4 {[%clk 0:00:25]}  Be7 {[%clk 0:01:18]} 29. Kd3 {[%clk 0:00:25]}  b5 {[%clk 0:01:16]} 30. axb5 {[%clk 0:00:22]}  axb5 {[%clk 0:01:17]} 31. Nc3 {[%clk 0:00:22]}  b4 {[%clk 0:01:16]} 32. Nb1 {[%clk 0:00:17]}  Kd5 {[%clk 0:01:15]} 33. f3 {[%clk 0:00:16]}  Bd8 {[%clk 0:01:11]} 34. b3 {[%clk 0:00:16]}  Be7 {[%clk 0:01:10]} 35. Nd2 {[%clk 0:00:16]}  Bd8 {[%clk 0:01:10]} 36. Ne4 {[%clk 0:00:16]}  Be7 {[%clk 0:01:09]} 37. Nf2 {[%clk 0:00:15]}  h5 {[%clk 0:01:07]} 38. Nd1 {[%clk 0:00:15]}  Bd8 {[%clk 0:01:03]} 39. Nb2 {[%clk 0:00:14]}  Bb6 {[%clk 0:01:00]} 40. e4+ {[%clk 0:00:13]}  Ke6 {[%clk 0:00:54]} 41. Kc4 {[%clk 0:00:13]}  Bd4 {[%clk 0:00:53]} 42. Nd3 {[%clk 0:00:13]}  g4 {[%clk 0:00:50]} 43. fxg4 {[%clk 0:00:12]}  hxg4 {[%clk 0:00:51]} 44. h3 {[%clk 0:00:11]}  gxh3 {[%clk 0:00:51]} 45. gxh3 {[%clk 0:00:12]}  Kf6 {[%clk 0:00:50]} 46. Kxb4 {[%clk 0:00:11]}  Kg5 {[%clk 0:00:49]} 47. Kc4 {[%clk 0:00:12]}  Kh4 {[%clk 0:00:47]} 48. Kd5 {[%clk 0:00:11]}  Kxh3 {[%clk 0:00:46]} 49. Nxe5 {[%clk 0:00:12]}  Bf2 {[%clk 0:00:42]} 50. b4 {[%clk 0:00:11]}  Kh4 {[%clk 0:00:42]} 51. b5 {[%clk 0:00:10]}  Kg5 {[%clk 0:00:40]} 52. Nd7 {[%clk 0:00:06]}  Kg6 {[%clk 0:00:31]} 53. b6 {[%clk 0:00:07]}  Kf7 {[%clk 0:00:30]} 54. b7 {[%clk 0:00:06]}  Ba7 {[%clk 0:00:30]} 55. b8=Q {[%clk 0:00:05]}  Bxb8 {[%clk 0:00:30]} 56. Nxb8 {[%clk 0:00:05]} 1-0


[Site "https://www.chess.com"]

[Event "Titled Tuesday Blitz March 28 Late 2023"]
[White "Demchenko, Anton"]
[Black "krucki03"]
[WhiteFideId "4160258"]
[WhiteElo "2545"]
[BlackElo "2375"]
[Result "1-0"]
[Round "07"]
[TimeControl "180+2"]
[Date "2023.03.28"]
[WhiteClock "0:02:58"]
[BlackClock "0:02:33"]

1. e4 {[%clk 0:03:00]}  c5 {[%clk 0:02:56]} 2. Nf3 {[%clk 0:03:01]}  d6 {[%clk 0:02:57]} 3. d4 {[%clk 0:03:01]}  cxd4 {[%clk 0:02:57]} 4. Nxd4 {[%clk 0:03:02]}  Nf6 {[%clk 0:02:58]} 5. Nc3 {[%clk 0:03:03]}  g6 {[%clk 0:02:58]} 6. f3 {[%clk 0:03:00]}  Bg7 {[%clk 0:02:58]} 7. Be3 {[%clk 0:03:01]}  O-O {[%clk 0:02:59]} 8. Qd2 {[%clk 0:03:02]}  Nc6 {[%clk 0:03:00]} 9. O-O-O {[%clk 0:03:02]}  d5 {[%clk 0:03:00]} 10. Nxc6 {[%clk 0:03:02]}  bxc6 {[%clk 0:03:01]} 11. Bc4 {[%clk 0:03:03]}  e5 {[%clk 0:02:52]} 12. exd5 {[%clk 0:03:02]}  Nxd5 {[%clk 0:02:52]} 13. Nxd5 {[%clk 0:03:03]}  cxd5 {[%clk 0:02:52]} 14. Qxd5 {[%clk 0:03:01]}  Qc7 {[%clk 0:02:41]} 15. Qc5 {[%clk 0:03:00]}  Qxc5 {[%clk 0:02:35]} 16. Bxc5 {[%clk 0:02:59]}  h5 {[%clk 0:02:33]} 17. Bxf8 {[%clk 0:02:58]} 1-0


[Site "https://www.chess.com"]

[Event "Titled Tuesday Blitz March 28 Late 2023"]
[White "Oro, Faustino"]
[Black "koncheto"]
[WhiteFideId "20000197"]
[WhiteElo "1984"]
[BlackElo "2474"]
[Result "1/2-1/2"]
[Round "07"]
[TimeControl "180+2"]
[Date "2023.03.28"]
[WhiteClock "0:00:03"]
[BlackClock "0:00:04"]

1. e4 {[%clk 0:03:00]}  c5 {[%clk 0:02:58]} 2. Nf3 {[%clk 0:03:01]}  d6 {[%clk 0:02:58]} 3. d4 {[%clk 0:03:01]}  cxd4 {[%clk 0:02:59]} 4. Nxd4 {[%clk 0:03:01]}  Nf6 {[%clk 0:03:00]} 5. Nc3 {[%clk 0:03:02]}  Nc6 {[%clk 0:03:01]} 6. Bg5 {[%clk 0:02:59]}  e6 {[%clk 0:03:01]} 7. Qd2 {[%clk 0:02:59]}  a6 {[%clk 0:03:00]} 8. O-O-O {[%clk 0:02:55]}  Bd7 {[%clk 0:03:00]} 9. f3 {[%clk 0:02:53]}  Be7 {[%clk 0:02:56]} 10. g4 {[%clk 0:02:52]}  Rc8 {[%clk 0:02:51]} 11. h4 {[%clk 0:02:47]}  b5 {[%clk 0:02:39]} 12. Nxc6 {[%clk 0:02:27]}  Bxc6 {[%clk 0:02:37]} 13. Kb1 {[%clk 0:02:20]}  h6 {[%clk 0:02:02]} 14. Be3 {[%clk 0:02:10]}  Nd7 {[%clk 0:02:01]} 15. Ne2 {[%clk 0:01:45]}  Ne5 {[%clk 0:02:00]} 16. Nd4 {[%clk 0:01:45]}  Bb7 {[%clk 0:01:54]} 17. Qf2 {[%clk 0:01:39]}  d5 {[%clk 0:01:33]} 18. Be2 {[%clk 0:01:26]}  Qc7 {[%clk 0:01:19]} 19. exd5 {[%clk 0:01:08]}  Bxd5 {[%clk 0:01:18]} 20. Rhe1 {[%clk 0:01:05]}  Nc6 {[%clk 0:01:10]} 21. Bf1 {[%clk 0:00:48]}  Bf6 {[%clk 0:00:59]} 22. Nxc6 {[%clk 0:00:45]}  Qxc6 {[%clk 0:00:58]} 23. g5 {[%clk 0:00:41]}  hxg5 {[%clk 0:00:32]} 24. hxg5 {[%clk 0:00:41]}  Be7 {[%clk 0:00:28]} 25. Bd4 {[%clk 0:00:37]}  Bxf3 {[%clk 0:00:25]} 26. Rd3 {[%clk 0:00:35]}  Bd5 {[%clk 0:00:18]} 27. Rc3 {[%clk 0:00:32]}  Qb7 {[%clk 0:00:15]} 28. Rxc8+ {[%clk 0:00:31]}  Qxc8 {[%clk 0:00:16]} 29. Bxg7 {[%clk 0:00:26]}  Rh1 {[%clk 0:00:16]} 30. Bd3 {[%clk 0:00:12]}  Rxe1+ {[%clk 0:00:14]} 31. Qxe1 {[%clk 0:00:13]}  Bxg5 {[%clk 0:00:15]} 32. Qe5 {[%clk 0:00:14]}  Be7 {[%clk 0:00:12]} 33. Bh6 {[%clk 0:00:13]}  Qc5 {[%clk 0:00:11]} 34. Qh8+ {[%clk 0:00:10]}  Kd7 {[%clk 0:00:12]} 35. Bc1 {[%clk 0:00:08]}  Qg1 {[%clk 0:00:11]} 36. Qh6 {[%clk 0:00:07]}  Qg4 {[%clk 0:00:06]} 37. a3 {[%clk 0:00:07]}  Be4 {[%clk 0:00:05]} 38. Qe3 {[%clk 0:00:05]}  Bxd3 {[%clk 0:00:05]} 39. Qxd3+ {[%clk 0:00:06]}  Ke8 {[%clk 0:00:06]} 40. Qc3 {[%clk 0:00:05]}  Qe4 {[%clk 0:00:05]} 41. Qc8+ {[%clk 0:00:05]}  Bd8 {[%clk 0:00:05]} 42. Bg5 {[%clk 0:00:05]}  Qh1+ {[%clk 0:00:04]} 43. Bc1 {[%clk 0:00:03]}  Qd5 {[%clk 0:00:04]} 44. Qxa6 {[%clk 0:00:04]}  f5 {[%clk 0:00:04]} 45. a4 {[%clk 0:00:04]}  bxa4 {[%clk 0:00:04]} 46. Qxa4+ {[%clk 0:00:05]}  Kf7 {[%clk 0:00:04]} 47. c4 {[%clk 0:00:05]}  Qd3+ {[%clk 0:00:04]} 48. Ka1 {[%clk 0:00:06]}  Bf6 {[%clk 0:00:05]} 49. c5 {[%clk 0:00:05]}  Qf1 {[%clk 0:00:02]} 50. Qc2 {[%clk 0:00:02]}  Be5 {[%clk 0:00:01]} 51. c6 {[%clk 0:00:03]}  Qa6+ {[%clk 0:00:01]} 52. Kb1 {[%clk 0:00:03]}  Bc7 {[%clk 0:00:02]} 53. b4 {[%clk 0:00:03]}  Qb5 {[%clk 0:00:02]} 54. Qb3 {[%clk 0:00:03]}  Ke7 {[%clk 0:00:02]} 55. Bg5+ {[%clk 0:00:03]}  Kd6 {[%clk 0:00:02]} 56. Qc3 {[%clk 0:00:03]}  e5 {[%clk 0:00:02]} 57. Bf6 {[%clk 0:00:03]}  Qxc6 {[%clk 0:00:02]} 58. Qxe5+ {[%clk 0:00:03]}  Kd7 {[%clk 0:00:03]} 59. Qxf5+ {[%clk 0:00:04]}  Qe6 {[%clk 0:00:03]} 60. Qb5+ {[%clk 0:00:04]}  Qc6 {[%clk 0:00:03]} 61. Qd3+ {[%clk 0:00:05]}  Kc8 {[%clk 0:00:04]} 62. Bc3 {[%clk 0:00:05]}  Bd6 {[%clk 0:00:04]} 63. Kb2 {[%clk 0:00:05]}  Kb7 {[%clk 0:00:04]} 64. Qf5 {[%clk 0:00:05]}  Qb6 {[%clk 0:00:04]} 65. Qd7+ {[%clk 0:00:06]}  Qc7 {[%clk 0:00:04]} 66. Qe8 {[%clk 0:00:06]}  Qb6 {[%clk 0:00:04]} 67. Kb3 {[%clk 0:00:06]}  Qc6 {[%clk 0:00:04]} 68. Qe6 {[%clk 0:00:05]}  Bc7 {[%clk 0:00:02]} 69. Qf7 {[%clk 0:00:06]}  Qb6 {[%clk 0:00:02]} 70. Be5 {[%clk 0:00:04]}  Kb8 {[%clk 0:00:01]} 71. Bc3 {[%clk 0:00:04]}  Bd6 {[%clk 0:00:01]} 72. Qd5 {[%clk 0:00:04]}  Qc7 {[%clk 0:00:01]} 73. b5 {[%clk 0:00:04]}  Bf4 {[%clk 0:00:02]} 74. Bd4 {[%clk 0:00:04]}  Bd6 {[%clk 0:00:02]} 75. b6 {[%clk 0:00:04]}  Qd7 {[%clk 0:00:03]} 76. Be5 {[%clk 0:00:03]}  Qh3+ {[%clk 0:00:02]} 77. Bc3 {[%clk 0:00:01]}  Qg3 {[%clk 0:00:02]} 78. Qc6 {[%clk 0:00:02]}  Qf4 {[%clk 0:00:02]} 79. Kc2 {[%clk 0:00:02]}  Qf2+ {[%clk 0:00:02]} 80. Kb3 {[%clk 0:00:02]}  Qf4 {[%clk 0:00:03]} 81. Kb2 {[%clk 0:00:03]}  Qf2+ {[%clk 0:00:03]} 82. Kb3 {[%clk 0:00:03]}  Qf4 {[%clk 0:00:04]} 1/2-1/2


[Site "https://www.chess.com"]

[Event "Titled Tuesday Blitz March 28 Late 2023"]
[White "Olsson, William"]
[Black "Escalona Landi, Samid Eduardo"]
[WhiteFideId "1741721"]
[BlackFideId "3937437"]
[WhiteElo "2197"]
[BlackElo "2207"]
[Result "1-0"]
[Round "07"]
[TimeControl "180+2"]
[Date "2023.03.28"]
[WhiteClock "0:00:06"]
[BlackClock "0:00:02"]

1. c4 {[%clk 0:03:00]}  Nf6 {[%clk 0:02:54]} 2. g3 {[%clk 0:03:01]}  g6 {[%clk 0:02:52]} 3. Bg2 {[%clk 0:03:01]}  Bg7 {[%clk 0:02:53]} 4. Nf3 {[%clk 0:03:01]}  d6 {[%clk 0:02:53]} 5. O-O {[%clk 0:03:02]}  O-O {[%clk 0:02:54]} 6. d4 {[%clk 0:03:01]}  c6 {[%clk 0:02:54]} 7. Nc3 {[%clk 0:03:01]}  Bf5 {[%clk 0:02:55]} 8. Re1 {[%clk 0:02:59]}  Ne4 {[%clk 0:02:55]} 9. Nh4 {[%clk 0:02:44]}  Nxc3 {[%clk 0:02:54]} 10. bxc3 {[%clk 0:02:44]}  Be6 {[%clk 0:02:55]} 11. d5 {[%clk 0:02:42]}  cxd5 {[%clk 0:02:56]} 12. cxd5 {[%clk 0:02:42]}  Bd7 {[%clk 0:02:55]} 13. Qb3 {[%clk 0:02:26]}  Na6 {[%clk 0:02:55]} 14. Be3 {[%clk 0:02:25]}  Qc7 {[%clk 0:02:53]} 15. Rac1 {[%clk 0:02:20]}  b6 {[%clk 0:02:50]} 16. Nf3 {[%clk 0:02:13]}  Nc5 {[%clk 0:02:48]} 17. Qa3 {[%clk 0:02:07]}  Rac8 {[%clk 0:02:37]} 18. Bd4 {[%clk 0:02:07]}  Ne4 {[%clk 0:02:31]} 19. Bxg7 {[%clk 0:01:51]}  Kxg7 {[%clk 0:02:32]} 20. c4 {[%clk 0:01:51]}  Qc5 {[%clk 0:02:30]} 21. Qb2+ {[%clk 0:01:49]}  Nf6 {[%clk 0:02:28]} 22. Nd4 {[%clk 0:01:48]}  Qa5 {[%clk 0:02:24]} 23. e4 {[%clk 0:01:47]}  Rxc4 {[%clk 0:02:22]} 24. Nc6 {[%clk 0:01:33]}  Bxc6 {[%clk 0:02:20]} 25. dxc6 {[%clk 0:01:34]}  Rc5 {[%clk 0:01:24]} 26. f4 {[%clk 0:01:01]}  e5 {[%clk 0:01:05]} 27. Red1 {[%clk 0:00:47]}  Rc8 {[%clk 0:00:50]} 28. Rxd6 {[%clk 0:00:46]}  Rxc1+ {[%clk 0:00:42]} 29. Qxc1 {[%clk 0:00:45]}  Rc7 {[%clk 0:00:24]} 30. Rd5 {[%clk 0:00:20]}  Nxd5 {[%clk 0:00:14]} 31. exd5 {[%clk 0:00:21]}  Qb4 {[%clk 0:00:14]} 32. fxe5 {[%clk 0:00:19]}  Qd4+ {[%clk 0:00:14]} 33. Kf1 {[%clk 0:00:15]}  Qxe5 {[%clk 0:00:14]} 34. Qf4 {[%clk 0:00:16]}  Qa1+ {[%clk 0:00:09]} 35. Kf2 {[%clk 0:00:15]}  Qxa2+ {[%clk 0:00:08]} 36. Kg1 {[%clk 0:00:13]}  Qb1+ {[%clk 0:00:04]} 37. Bf1 {[%clk 0:00:12]}  Rc8 {[%clk 0:00:04]} 38. Qe5+ {[%clk 0:00:09]}  Kg8 {[%clk 0:00:04]} 39. d6 {[%clk 0:00:08]}  Rxc6 {[%clk 0:00:02]} 40. d7 {[%clk 0:00:06]} 1-0


[Site "https://www.chess.com"]

[Event "Titled Tuesday Blitz March 28 Late 2023"]
[White "Khandelwal, Ankush"]
[Black "Levine, Joseph"]
[WhiteFideId "413470"]
[BlackFideId "30940346"]
[WhiteElo "2263"]
[BlackElo "2351"]
[Result "1/2-1/2"]
[Round "07"]
[TimeControl "180+2"]
[Date "2023.03.28"]
[WhiteClock "0:00:24"]
[BlackClock "0:00:09"]

1. e4 {[%clk 0:03:00]}  e6 {[%clk 0:03:00]} 2. d4 {[%clk 0:02:58]}  d5 {[%clk 0:03:00]} 3. Nc3 {[%clk 0:02:55]}  Nf6 {[%clk 0:03:00]} 4. e5 {[%clk 0:02:50]}  Nfd7 {[%clk 0:02:59]} 5. f4 {[%clk 0:02:49]}  c5 {[%clk 0:02:57]} 6. Nf3 {[%clk 0:02:49]}  Nc6 {[%clk 0:02:52]} 7. Be3 {[%clk 0:02:49]}  cxd4 {[%clk 0:02:51]} 8. Nxd4 {[%clk 0:02:48]}  Bc5 {[%clk 0:02:52]} 9. Qd2 {[%clk 0:02:45]}  O-O {[%clk 0:02:51]} 10. O-O-O {[%clk 0:02:44]}  a6 {[%clk 0:02:50]} 11. Qf2 {[%clk 0:02:42]}  Bxd4 {[%clk 0:02:50]} 12. Bxd4 {[%clk 0:02:42]}  b5 {[%clk 0:02:51]} 13. Be3 {[%clk 0:02:34]}  b4 {[%clk 0:02:50]} 14. Na4 {[%clk 0:02:34]}  Bb7 {[%clk 0:02:50]} 15. h4 {[%clk 0:02:25]}  Rc8 {[%clk 0:02:49]} 16. h5 {[%clk 0:02:14]}  Qa5 {[%clk 0:02:32]} 17. b3 {[%clk 0:02:07]}  Ne7 {[%clk 0:02:32]} 18. g4 {[%clk 0:01:49]}  d4 {[%clk 0:02:21]} 19. Rxd4 {[%clk 0:01:49]}  Bxh1 {[%clk 0:02:21]} 20. Rxd7 {[%clk 0:01:49]}  Nd5 {[%clk 0:02:15]} 21. Bc5 {[%clk 0:01:38]}  Rfd8 {[%clk 0:02:08]} 22. Rxd8+ {[%clk 0:01:39]}  Qxd8 {[%clk 0:02:06]} 23. Bxa6 {[%clk 0:01:39]}  Ra8 {[%clk 0:01:48]} 24. Bb7 {[%clk 0:01:36]}  Rxa4 {[%clk 0:01:48]} 25. bxa4 {[%clk 0:01:35]}  Nc3 {[%clk 0:01:48]} 26. Bf3 {[%clk 0:01:23]}  g5 {[%clk 0:00:59]} 27. Bxb4 {[%clk 0:01:18]}  Nxa2+ {[%clk 0:00:43]} 28. Kb2 {[%clk 0:01:18]}  Bxf3 {[%clk 0:00:38]} 29. Kxa2 {[%clk 0:01:17]}  Qd5+ {[%clk 0:00:38]} 30. Ka3 {[%clk 0:01:08]}  gxf4 {[%clk 0:00:37]} 31. h6 {[%clk 0:00:55]}  Be4 {[%clk 0:00:13]} 32. Qxf4 {[%clk 0:00:46]}  Bxc2 {[%clk 0:00:13]} 33. Qg5+ {[%clk 0:00:27]}  Bg6 {[%clk 0:00:13]} 34. Qc1 {[%clk 0:00:27]}  Qd3+ {[%clk 0:00:10]} 35. Qc3 {[%clk 0:00:27]}  Qd8 {[%clk 0:00:07]} 36. Bd6 {[%clk 0:00:24]}  Qa8 {[%clk 0:00:05]} 37. Qb3 {[%clk 0:00:15]}  Be4 {[%clk 0:00:04]} 38. Qb8+ {[%clk 0:00:15]}  Qxb8 {[%clk 0:00:04]} 39. Bxb8 {[%clk 0:00:16]}  Kf8 {[%clk 0:00:05]} 40. Kb4 {[%clk 0:00:15]}  Ke7 {[%clk 0:00:04]} 41. Kc5 {[%clk 0:00:16]}  Kd7 {[%clk 0:00:04]} 42. Kb6 {[%clk 0:00:16]}  Bf3 {[%clk 0:00:04]} 43. g5 {[%clk 0:00:15]}  Kc8 {[%clk 0:00:04]} 44. Bd6 {[%clk 0:00:15]}  Be4 {[%clk 0:00:04]} 45. a5 {[%clk 0:00:16]}  Bf3 {[%clk 0:00:04]} 46. a6 {[%clk 0:00:16]}  Be4 {[%clk 0:00:05]} 47. a7 {[%clk 0:00:17]}  Bd5 {[%clk 0:00:05]} 48. Bc5 {[%clk 0:00:17]}  Be4 {[%clk 0:00:06]} 49. Bb4 {[%clk 0:00:17]}  Bd5 {[%clk 0:00:04]} 50. Bc5 {[%clk 0:00:18]}  Be4 {[%clk 0:00:04]} 51. Bd4 {[%clk 0:00:18]}  Bf3 {[%clk 0:00:04]} 52. Kc5 {[%clk 0:00:19]}  Kb7 {[%clk 0:00:04]} 53. Kd6 {[%clk 0:00:19]}  Bh5 {[%clk 0:00:04]} 54. Ke7 {[%clk 0:00:19]}  Bg6 {[%clk 0:00:05]} 55. Kf6 {[%clk 0:00:20]}  Ka8 {[%clk 0:00:05]} 56. Be3 {[%clk 0:00:20]}  Bh5 {[%clk 0:00:06]} 57. Bf2 {[%clk 0:00:20]}  Bg6 {[%clk 0:00:07]} 58. Kg7 {[%clk 0:00:21]}  Kb7 {[%clk 0:00:06]} 59. Be3 {[%clk 0:00:21]}  Ka8 {[%clk 0:00:06]} 60. Bd4 {[%clk 0:00:22]}  Kb7 {[%clk 0:00:07]} 61. Be3 {[%clk 0:00:22]}  Ka8 {[%clk 0:00:08]} 62. Bf2 {[%clk 0:00:23]}  Kb7 {[%clk 0:00:09]} 63. Be3 {[%clk 0:00:24]} 1/2-1/2


[Site "https://www.chess.com"]